[Event "Karel Janecek Open 2024"]
[Site "Prague"]
[Date "2024.02.29"]
[Round "2.3"]
[White "Bernadskiy, Vitaliy"]
[Black "Chkhaidze, Nikoloz"]
[Result "1/2-1/2"]
[ECO "A00"]
[WhiteElo "2566"]
[BlackElo "2209"]
[Annotator "TA"]
[PlyCount "100"]
[EventDate "2024.02.22"]
[EventType "swiss"]
[EventCountry "CZE"]
[SourceTitle "playchess.com"]
[Source "ChessBase"]
[SourceQuality "1"]
[TimeControl "40/5400+30:1800+30"]

{[%evp 9,100,0,4,-18,-17,0,0,-6,-12,-12,-18,-11,-9,-5,-19,-28,-6,-24,0,0,73,19,28,7,64,6,58,0,-2,-4,8,8,7,9,7,5,3,0,0,0,0,0,0,0,42,21,22,15,18,16,29,-3,0,0,0,-2,0,-2,0,0,0,0,0,0,0,0,0,0,0,0,0,0,0,0,2,0,0,0,0,0,0,0,0,0,0,0,0,0,0,0,0,0,0]} 1. h3 {[%emt 0:00:25]} c5 {[%emt 0:03:07]} 2. Nf3 {[%emt 0:01:09]} g6 {[%emt 0:00:17]} 3. e3 {[%emt 0:01:25]} Bg7 {[%emt 0:00:05]} 4. d4 {[%emt 0:00:03]} d5 {[%emt 0:04:56]} 5. Bb5+ {[%emt 0:01:16]} Bd7 {[%emt 0:01:21]} 6. a4 {[%emt 0:00:38]} Nf6 {[%emt 0:00:13]} 7. O-O {[%emt 0:00:05]} O-O {[%emt 0:01:38]} 8. dxc5 {[%emt 0:01:02]} Qc7 {[%emt 0:02:09]} 9. b4 {[%emt 0:00:33]} a5 {[%emt 0:03:11]} 10. bxa5 $1 {[%emt 0:02:26]} (10. Bxd7 Nfxd7 11. Nd4 axb4 $17) 10... Na6 {[%emt 0:01:56]} (10... Qxc5 11. Ba3 Qc7 12. Bxe7 Bxb5 13. Bxf8 Bxf1 14. Bxg7 Kxg7 15. Qxf1 $15 (15. Kxf1 Rxa5 16. Qd3 Rc5 $14)) 11. Ba3 {[%emt 0:05:42]} Nxc5 {[%emt 0:01:43]} 12. Bb4 {[%emt 0:00:14]} Rfc8 {[%emt 0:12:02]} (12... Nfe4 {keeps more tension.} 13. Nd4 Rfd8 14. Nd2 e5) 13. Ra3 {[%emt 0:02:55]} e6 {[%emt 0:06:40]} (13... Nfe4 {with more complications.} 14. Qxd5 Be6 15. Qd1 Bb2) 14. Nbd2 {[%emt 0:05:28]} b6 {[%emt 0:07:09]} (14... Nfe4 $11) 15. axb6 {[%emt 0:03:09]} (15. Bc3 $16) 15... Qxb6 $11 {[%emt 0:00:10]} 16. c4 {[%emt 0:00:05]} Qb8 {[%emt 0:04:52]} (16... Qb7 $1 $11) 17. Nd4 {[%emt 0:04:37]} ({White should play} 17. Bc3 $1 $14) 17... e5 {[%emt 0:14:07]} (17... dxc4 $11 18. Nxc4 e5) 18. N4f3 {[%emt 0:16:45]} (18. Bxc5 $14 dxc4 (18... Rxc5 19. Bxd7 Nxd7 20. N4b3 $14) 19. Bxd7 Nxd7 20. Nb5 Nxc5 21. Nxc4) 18... dxc4 {[%emt 0:18:30]} 19. Bxd7 {[%emt 0:12:52][%cal Bb5d7,Bd7c8,Bc8b7][%mdl 32]} (19. Nxc4 {looks sharper.} Bxb5 20. axb5 Qxb5 21. Qa1) 19... Qxb4 {[%emt 0:02:10]} (19... Ncxd7 $5 20. Bc3 $8 Ra7 $11) 20. Bxc8 {[%emt 0:01:06][%cal Od1a1] [#] Black must now prevent Qa1!} Qxa3 {[%emt 0:00:15]} 21. Nxc4 {[%emt 0:00:25]} Qxa4 {[%emt 0:03:11]} 22. Qxa4 {[%emt 0:00:06]} ({Reject} 22. Ncxe5 Qxd1 (22... Rxc8 $2 23. Ng5 $19) 23. Rxd1 Rxc8 $17) 22... Nxa4 {[%emt 0:03:29]} 23. Bb7 {[%emt 0:00:04]} Ra7 {[%emt 0:01:22]} 24. Bc6 {[%emt 0:00:10][%cal Of1a1]} e4 {[%emt 0:00:59]} 25. Nfe5 {[%emt 0:00:34] [#] aiming for Ra1.} Nc3 {[%emt 0:00:53]} 26. g4 {[%emt 0:00:09]} Nfd5 {[%emt 0:02:12]} 27. Bxd5 {[%emt 0:00:38]} Nxd5 {[%emt 0:00:25]} 28. Rd1 {[%emt 0:00:04]} Bxe5 $1 {[%emt 0:01:00]} 29. Rxd5 {[%emt 0:00:24][%mdl 4096] Endgame. KRB-KRN} Bf6 {[%emt 0:00:34]} 30. Rc5 {[%emt 0:01:16]} Ra1+ {[%emt 0:01:10] The position is equal.} 31. Kg2 {[%emt 0:00:04]} Rc1 {[%emt 0:00:13]} 32. Kg3 {[%emt 0:00:16]} Rc2 {[%emt 0:00:36]} 33. h4 {[%emt 0:00:51]} h5 {[%emt 0:01:48]} 34. gxh5 {[%emt 0:02:51]} gxh5 {[%emt 0:00:01]} 35. Rf5 {[%emt 0:00:37]} Bxh4+ {[%emt 0:00:43]} 36. Kxh4 {[%emt 0:00:03]} Rxc4 {[%emt 0:00:02]} 37. Kxh5 {[%emt 0:00:04] KR-KR} Kf8 {[%emt 0:02:43]} 38. Kg5 {[%emt 0:00:11]} Ke7 {[%emt 0:00:04]} 39. Re5+ {[%emt 0:01:18]} Kd6 {[%emt 0:00:27]} 40. Kf6 {[%emt 0:00:04]} Rc2 {[%emt 0:01:10]} 41. Rf5 {[%emt 0:30:35]} Rc7 {[%emt 0:04:21]} 42. f3 {[%emt 0:00:00]} exf3 {[%emt 0:05:00]} 43. e4 {[%emt 0:00:00][%cal Be3e4,Be4e5][%mdl 32]} Rc3 {[%emt 0:04:10]} 44. e5+ {[%emt 0:00:00]} Kd7 {[%emt 0:01:15]} 45. Kxf7 {[%emt 0:00:00] White wants to mate with e6+.} Re3 {[%emt 0:00:24]} 46. Kf6 {[%emt 0:00:00]} Ke8 {[%emt 0:01:13]} 47. Ke6 {[%emt 0:00:00]} Ra3 {[%emt 0:00:44]} 48. Kf6 {[%emt 0:00:00]} Ra6+ {[%emt 0:01:05]} 49. e6 {[%emt 0:00:00]} f2 {[%emt 0:00:20]} 50. Rxf2 {[%emt 0:00:00] White threatens Rh2 and mate.} Ra1 {[%emt 0:00:14] Weighted Error Value: White=0.07 (flawless) /Black=0.11 (very precise) .  Mistake:       	White=3     	Black=3      Inaccurate:     	White=1     	Black=1      OK:         	White=19    	Black=19     Best:        	White=4     	Black=5      Strong:       	White=1     	Black=1} 1/2-1/2

[Event "Karel Janecek Open 2024"]
[Site "Prague"]
[Date "2024.02.29"]
[Round "2.4"]
[White "Bravetti, Antonio"]
[Black "Amar, Elham"]
[Result "0-1"]
[ECO "D36"]
[WhiteElo "2227"]
[BlackElo "2555"]
[Annotator "TA"]
[PlyCount "82"]
[EventDate "2024.02.22"]
[EventType "swiss"]
[EventCountry "CZE"]
[SourceTitle "playchess.com"]
[Source "ChessBase"]
[SourceQuality "1"]
[TimeControl "40/5400+30:1800+30"]

{[%evp 18,81,7,6,9,13,21,12,0,13,23,9,13,-13,0,0,4,0,8,0,0,-6,-8,-25,-20,-29,-40,-80,-84,-118,-118,-119,-127,-122,-41,-181,-189,-185,-187,-192,-181,-379,-381,-369,-378,-481,-475,-1698,-308,-1691,-1632,-3112,-5618,-2667,-2158,-29984,-29984,-29984,-29985,-29986,-29987,-29991,-29992,-29998,-29999,-29999]} 1. d4 {[%emt 0:00:07]} Nf6 {[%emt 0:00:09]} 2. c4 {[%emt 0:00:16]} e6 {[%emt 0:00:19]} 3. Nc3 {[%emt 0:00:32]} d5 {[%emt 0:00:13]} 4. cxd5 {[%emt 0:00:12]} exd5 {[%emt 0:00:08]} 5. Bg5 {[%emt 0:00:06]} c6 {[%emt 0:00:32]} 6. Qc2 {[%emt 0:00:23]} h6 {[%emt 0:04:13]} 7. Bh4 {[%emt 0:03:16]} Be7 {[%emt 0:01:27]} 8. e3 {[%emt 0:00:15]} O-O {[%emt 0:00:24]} 9. Nf3 {[%emt 0:00:28]} Re8 {[%emt 0:00:14]} 10. Bd3 {[%emt 0:00:17]} Ne4 {[%emt 0:00:25]} 11. Bxe7 {[%emt 0:10:40]} Qxe7 {[%emt 0:00:09]} 12. Bxe4 {[%emt 0:00:26]} dxe4 {[%emt 0:00:08] The position is equal.} 13. Nd2 {[%emt 0:00:03]} Bf5 {[%emt 0:00:33]} 14. O-O {[%emt 0:00:37]} Nd7 {[%emt 0:01:18]} 15. f3 {[%emt 0:09:04][%cal Rf3e4]} Qg5 {[%emt 0:02:41] [#] Hoping for ...exf3.} 16. f4 {[%emt 0:16:03]} Qg6 {[%emt 0:02:19]} 17. Nc4 {[%emt 0:02:45]} Qe6 {[%emt 0:00:14]} 18. b3 {[%emt 0:02:34]} Nf6 {[%emt 0:04:04]} 19. Rad1 {[%emt 0:06:26]} Rac8 {[%emt 0:03:14]} 20. Rfe1 {[%emt 0:16:05]} h5 {[%emt 0:02:47]} 21. Qf2 {[%emt 0:04:47]} Nd5 {[%emt 0:01:11]} 22. Nxd5 {[%emt 0:01:00]} cxd5 {[%emt 0:00:13]} 23. Nb2 {[%emt 0:00:44] White is weak on the light squares} Rc6 {[%emt 0:03:34] Black is more active.} 24. Rc1 {[%emt 0:00:48]} Rec8 {[%emt 0:00:11]} 25. Qd2 {[%emt 0:00:14] [#]} h4 {[%emt 0:00:50]} ({Black should try} 25... R8c7 $1 $17 {Threatens to win with ...Qc8.} 26. Na4 h4) 26. Rxc6 {[%emt 0:05:07] This move loses the game for White.} (26. Na4 $1 $15) 26... Qxc6 $19 {[%emt 0:00:50]} (26... bxc6 27. h3 $11) (26... Rxc6 27. Rc1 $17) 27. h3 {[%emt 0:00:09]} Qc2 $36 {[%emt 0:01:44][%mdl 2048] Inhibits Nd1. Black is on the roll.} 28. Qf2 {[%emt 0:04:14]} Bd7 {[%emt 0:05:04]} 29. Re2 $2 {[%emt 0:04:09]} (29. Qe2) 29... Qb1+ {[%emt 0:00:08]} 30. Kh2 {[%emt 0:00:12]} Bb5 {[%emt 0:01:37]} (30... Qxa2 31. Na4 Qa3 (31... Qxb3 32. Nc5 $11) 32. Nc5 $11) 31. Rd2 {[%emt 0:00:32]} Rc1 {[%emt 0:01:02][%csl Gb1][%cal Rc1h1]} (31... Qxa2 32. Nc4 Qa6 (32... Qxb3 33. Nd6 $11) 33. Ne5 $15) 32. Qxh4 {[%emt 0:09:19]} (32. Nd1 $142 Rxd1 33. Rxd1 Qxd1 34. Qxh4) 32... Rh1+ {[%emt 0:00:06]} (32... Qxa2 $2 33. Qd8+ Kh7 34. Qxd5 $18) 33. Kg3 {[%emt 0:00:05]} Qe1+ {[%emt 0:00:05]} (33... Qxa2 34. Qd8+ Kh7 35. Qxd5 $16) 34. Rf2 {[%emt 0:00:31]} Qxe3+ {[%emt 0:00:12]} 35. Kg4 {[%emt 0:00:15]} f6 {[%emt 0:02:08] And now ...Be2+ would win.} ({And not} 35... Qxd4 36. Qd8+ Kh7 37. Qh4+ Kg8 38. Qd8+ Kh7 39. Qh4+ Kg8 $11) 36. Kf5 {[%emt 0:00:45]} Qc3 {[%emt 0:03:11] Black mates.} 37. Kg4 {[%emt 0:02:12]} e3 {[%emt 0:01:55]} 38. Rf3 {[%emt 0:00:04]} Be2 {[%emt 0:00:55]} 39. Qh5 {[%emt 0:00:14]} Bxf3+ {[%emt 0:00:07]} ({Weaker is} 39... Qxb2 40. Qe8+ Kh7 41. Qh5+ Kg8 42. Qe8+ Kh7 43. Qh5+ Kg8 $11) 40. gxf3 {[%emt 0:00:29]} Rg1+ {[%emt 0:00:05]} 41. Kf5 {[%emt 0:30:16]} Qc8# {[%emt 0:00:02] Weighted Error Value: White=0.79/Black=0.35.  Mistake:       	White=3     	Black=1      Inaccurate:     	White=5     	---        OK:         	White=8     	Black=7      Best:        	---       	Black=4} 0-1

[Event "Karel Janecek Open 2024"]
[Site "Prague"]
[Date "2024.02.29"]
[Round "2.5"]
[White "Li, Di"]
[Black "Garcia Martinez, Marcos"]
[Result "1-0"]
[ECO "A14"]
[WhiteElo "2563"]
[BlackElo "2187"]
[Annotator "TA"]
[PlyCount "65"]
[EventDate "2024.02.22"]
[EventType "swiss"]
[EventCountry "CZE"]
[SourceTitle "playchess.com"]
[Source "ChessBase"]
[SourceQuality "1"]
[TimeControl "40/5400+30:1800+30"]

{[%evp 16,65,13,6,19,16,48,46,39,30,47,36,50,53,47,45,128,120,141,147,191,145,136,131,138,121,155,121,137,129,212,157,218,211,247,252,366,346,338,291,249,229,201,218,559,589,1048,1039,1037,1035,1083,1039]} 1. Nf3 {[%emt 0:00:07]} Nf6 {[%emt 0:00:33]} 2. c4 {[%emt 0:00:19]} e6 {[%emt 0:00:24]} 3. b3 {[%emt 0:00:15]} d5 {[%emt 0:01:43]} 4. Bb2 {[%emt 0:00:15]} Be7 {[%emt 0:00:15]} 5. g3 {[%emt 0:01:31]} Nbd7 {[%emt 0:01:41]} 6. Bg2 {[%emt 0:00:08]} O-O {[%emt 0:00:35]} 7. O-O {[%emt 0:00:09]} c6 {[%emt 0:00:44]} 8. d4 {[%emt 0:00:29]} a5 {[%emt 0:01:05]} 9. Nc3 {[%emt 0:00:37]} b6 {[%emt 0:05:29]} 10. Nd2 {[%emt 0:00:23]} Bb7 {[%emt 0:01:27][%cal Ob6b5]} 11. e4 {[%emt 0:00:42]} dxe4 {[%emt 0:05:55] White is slightly better.} 12. Ndxe4 {[%emt 0:00:19]} Qc8 {[%emt 0:01:16]} 13. Re1 {[%emt 0:02:57]} Rd8 {[%emt 0:03:26]} 14. Nd2 {[%emt 0:08:12]} Bd6 {[%emt 0:10:30]} 15. Qc2 {[%emt 0:03:52]} c5 {[%emt 0:16:39]} (15... Bf8 $14) 16. d5 $16 {[%emt 0:03:09]} exd5 {[%emt 0:01:59]} 17. cxd5 {[%emt 0:00:05]} Ba6 {[%emt 0:06:27]} 18. Nc4 {[%emt 0:07:02]} (18. Nce4 $18 Nxe4 19. Nxe4) 18... Qc7 {[%emt 0:03:39]} 19. Na3 {[%emt 0:02:46] White is more active.} Rac8 {[%emt 0:07:23]} 20. Ncb5 {[%emt 0:02:20]} Qb8 {[%emt 0:00:37]} 21. Nxd6 {[%emt 0:02:58]} Qxd6 {[%emt 0:00:08]} 22. Nc4 $36 {[%emt 0:00:04][%mdl 2048] White is in control.} Qb8 {[%emt 0:06:00]} (22... Bxc4 $16 23. bxc4 Re8) 23. Bc1 {[%emt 0:04:13][%cal Bb2c1,Bc1g5,Bg5f4][%mdl 32]} Bb7 {[%emt 0:12:27]} (23... Bxc4 $16 {might work better.} 24. bxc4 Qd6) 24. Rd1 {[%emt 0:04:04]} Ne8 {[%emt 0:05:57]} 25. Bg5 {[%emt 0:01:10]} f6 {[%emt 0:01:16]} (25... h6 $142) 26. Bf4 $18 {[%emt 0:00:05] A strong pair of Bishops.} Qa7 {[%emt 0:02:41]} 27. a4 {[%emt 0:04:33]} Nf8 {[%emt 0:00:22]} 28. Qe2 {[%emt 0:06:23]} Ba6 {[%emt 0:01:27]} 29. d6 {[%emt 0:00:46][%cal Bd5d6,Bd6e7][%mdl 32]} Kh8 $2 {[%emt 0:01:14]} (29... Rd7 {is a better chance.} 30. h4 g6) 30. Qe7 {[%emt 0:00:46] White is clearly winning.} Qxe7 {[%emt 0:01:00]} 31. dxe7 {[%emt 0:00:24][%cal Re7f8] [#]} Rxd1+ {[%emt 0:00:06]} 32. Rxd1 {[%emt 0:00:02]} Ng6 {[%emt 0:00:37]} 33. Nxb6 {[%emt 0:00:17] Weighted Error Value: White=0.14 (very precise) /Black=0.45.  Mistake:       	White=1     	Black=5      Inaccurate:     	---       	Black=2      OK:         	White=6     	Black=6      Best:        	White=2     	---} 1-0

[Event "Karel Janecek Open 2024"]
[Site "Prague"]
[Date "2024.02.29"]
[Round "2.6"]
[White "Rohit S"]
[Black "Kourkoulos-Arditis, Stamatis"]
[Result "0-1"]
[ECO "C79"]
[WhiteElo "2174"]
[BlackElo "2547"]
[Annotator "TA"]
[PlyCount "56"]
[EventDate "2024.02.22"]
[EventType "swiss"]
[EventCountry "CZE"]
[SourceTitle "playchess.com"]
[Source "ChessBase"]
[SourceQuality "1"]
[TimeControl "40/5400+30:1800+30"]

{[%evp 15,56,38,30,20,23,19,30,44,54,29,34,0,0,0,0,-75,-79,-105,-100,-97,-83,-187,-170,-180,-183,-181,-92,-97,-82,-95,-107,-98,-49,-1056,-1056,-1328,-1471,-1415,-1262,-2236,-1370,-1641,-1621]} 1. e4 {[%emt 0:00:02]} e5 {[%emt 0:00:07]} 2. Nf3 {[%emt 0:00:05]} Nc6 {[%emt 0:00:04]} 3. Bb5 {[%emt 0:00:06]} a6 {[%emt 0:00:03]} 4. Ba4 {[%emt 0:00:04]} Nf6 {[%emt 0:00:04]} 5. O-O {[%emt 0:00:04]} d6 {[%emt 0:00:07]} 6. Re1 {[%emt 0:00:12]} Bd7 {[%emt 0:00:11]} 7. c3 {[%emt 0:00:07]} g6 {[%emt 0:00:14]} 8. d4 {[%emt 0:00:04]} Bg7 {[%emt 0:00:06]} 9. h3 {[%emt 0:00:16]} O-O {[%emt 0:00:18]} 10. Bc2 {[%emt 0:00:27]} Nh5 {[%emt 0:00:44]} 11. a4 {[%emt 0:00:21] White has an edge.} Qe8 {[%emt 0:01:00]} 12. Na3 {[%emt 0:00:56]} f5 {[%emt 0:02:28]} 13. exf5 {[%emt 0:02:25]} gxf5 {[%emt 0:01:54]} 14. dxe5 {[%emt 0:13:59]} dxe5 {[%emt 0:01:11][%cal Bd6e5,Be5e4][%mdl 32]} 15. Nc4 {[%emt 0:09:02]} (15. Nxe5 $11 {remains equal.} Nxe5 16. Nc4) 15... e4 $1 $17 {[%emt 0:02:43]} 16. Ng5 {[%emt 0:08:10][%cal Rg5e4]} Kh8 {[%emt 0:12:52]} 17. h4 {[%emt 0:12:15]} Rd8 {[%emt 0:03:22]} 18. a5 {[%emt 0:03:02]} (18. Nh3 $17) 18... h6 $19 {[%emt 0:07:28]} 19. Nh3 {[%emt 0:00:41]} Be6 {[%emt 0:01:36]} 20. Qe2 {[%emt 0:00:15] [#]} Qf7 {[%emt 0:00:20]} ({Black should try} 20... Qg6 $1 $19 {Threatens to win with ...Rg8.} 21. Nf4 Nxf4 22. Bxf4 Bxc4 23. Qxc4 Be5 24. Bxe4 (24. Bxe5+ $2 Nxe5 25. Qxc7 Nf3+ 26. Kf1 Nxe1 $19) 24... fxe4 (24... Bxf4 25. Bxc6 Qg4 26. g3 $11) 25. Rxe4 Bf6 26. Bxc7 Rd2) 21. Ra4 $17 {[%emt 0:01:52]} Rg8 $36 {[%emt 0:08:10][%mdl 2048] ...Qg6 would now be deadly. Keeping White busy. Black is more active.} 22. Bd1 {[%emt 0:06:59] [#]} Rxd1 $1 {[%emt 0:34:47]} 23. Rxd1 {[%emt 0:02:16]} Qg6 {[%emt 0:00:30]} ({But not} 23... Bf6 $6 24. Nf4 Nxf4 25. Bxf4 $11) (23... f4 $17 24. Qxe4 Bxh3 25. gxh3 Bd4+ 26. Kh2 (26. Kf1 Ng3+ 27. fxg3 fxg3+ 28. Bf4 g2+ 29. Ke2 Re8 $15) 26... Bxf2) 24. g3 $2 {[%emt 0:18:22][%mdl 8192] [#] Now White is beyond hope.} (24. Nf4 $15 Nxf4 25. Bxf4) 24... Nxg3 $1 $19 {[%emt 0:01:48][%mdl 512] Black is clearly winning.} 25. fxg3 {[%emt 0:00:24]} (25. Qe3 Qg4) 25... Qxg3+ {[%emt 0:00:08]} 26. Kf1 {[%emt 0:00:30]} Qxh3+ {[%emt 0:00:20] White is weak on the light squares} 27. Ke1 {[%emt 0:00:14]} Ne5 {[%emt 0:01:15]} 28. Nxe5 {[%emt 0:00:17]} Bxe5 {[%emt 0:00:06] Weighted Error Value: White=1.10/Black=0.68.  Loses game:     	White=1     	---        Mistake:       	White=2     	Black=2      Inaccurate:     	White=2     	---        OK:         	White=5     	Black=5      Best:        	White=1     	---        Strong:       	---       	Black=1      Brilliant:      	---       	Black=2} 0-1

[Event "Karel Janecek Open 2024"]
[Site "Prague"]
[Date "2024.02.29"]
[Round "2.7"]
[White "Heberla, Bartlomiej"]
[Black "Budrewicz, Krzysztof"]
[Result "1-0"]
[ECO "E90"]
[WhiteElo "2546"]
[BlackElo "2184"]
[Annotator "TA"]
[PlyCount "93"]
[EventDate "2024.02.22"]
[EventType "swiss"]
[EventCountry "CZE"]
[SourceTitle "playchess.com"]
[Source "ChessBase"]
[SourceQuality "1"]
[TimeControl "40/5400+30:1800+30"]

{[%evp 11,93,31,37,39,40,28,55,52,45,51,56,40,40,42,50,39,55,45,47,43,63,33,120,132,149,144,174,179,177,159,176,164,291,311,282,229,230,256,250,221,214,190,214,178,220,217,219,224,223,207,216,187,250,179,155,128,146,136,131,95,88,93,85,80,84,55,58,66,47,15,273,273,262,262,443,420,399,327,529,511,743,729,1209,1181]} 1. d4 {[%emt 0:01:02]} Nf6 {[%emt 0:00:15]} 2. c4 {[%emt 0:00:10]} g6 {[%emt 0:00:50]} 3. Nc3 {[%emt 0:00:05]} Bg7 {[%emt 0:00:18]} 4. e4 {[%emt 0:00:06]} O-O {[%emt 0:00:11]} 5. Nf3 {[%emt 0:00:02]} d6 {[%emt 0:00:25]} 6. Bd3 {[%emt 0:00:03]} Bg4 {[%emt 0:03:25]} 7. Be2 {[%emt 0:01:35]} Nfd7 {[%emt 0:02:36]} 8. Be3 {[%emt 0:00:36]} c5 {[%emt 0:00:37]} 9. d5 {[%emt 0:00:30] White is slightly better.} Na6 {[%emt 0:02:48]} 10. h3 {[%emt 0:11:29]} Bxf3 {[%emt 0:00:19]} 11. Bxf3 {[%emt 0:00:02]} Nc7 {[%emt 0:01:20]} 12. Be2 {[%emt 0:00:53]} Re8 {[%emt 0:01:37]} 13. O-O {[%emt 0:11:25]} e6 {[%emt 0:00:56]} 14. Qd2 {[%emt 0:04:52]} exd5 {[%emt 0:01:20]} 15. exd5 {[%emt 0:00:08]} Qh4 {[%emt 0:02:46]} 16. Bg4 {[%emt 0:03:47]} Rxe3 {[%emt 0:04:05]} 17. Qxe3 $16 {[%emt 0:00:53]} f5 {[%emt 0:03:37]} 18. g3 {[%emt 0:04:13]} Qd8 {[%emt 0:10:31]} 19. Be2 {[%emt 0:02:53][%cal Bg4e2,Be2d3,Bd3f5][%mdl 32]} Bd4 {[%emt 0:00:49]} 20. Qd2 {[%emt 0:00:20]} Qf6 {[%emt 0:04:07]} 21. Kg2 {[%emt 0:07:14]} g5 {[%emt 0:03:38]} (21... h5 $142 22. Rae1 a6) 22. f4 $18 {[%emt 0:04:53]} gxf4 {[%emt 0:01:33]} 23. Qxf4 {[%emt 0:06:57]} Rf8 {[%emt 0:00:35]} 24. Bd3 {[%emt 0:00:24][%cal Rd3f5]} Ne5 {[%emt 0:01:59][%cal Bd7e5,Be5c4,Bc4e3][%mdl 32]} 25. Qxf5 {[%emt 0:04:01]} Qxf5 {[%emt 0:00:48]} 26. Bxf5 {[%emt 0:00:07]} Kg7 {[%emt 0:00:38][%cal Bg8g7,Bg7f8,Bf8e7][%mdl 32]} 27. Be6 {[%emt 0:04:36]} Nxc4 {[%emt 0:03:33]} 28. Rxf8 {[%emt 0:00:08]} Ne3+ {[%emt 0:00:12]} 29. Kf3 {[%emt 0:02:41]} Kxf8 {[%emt 0:00:23]} 30. Ke4 {[%emt 0:02:48] Strongly threatening Re1.} Ke7 {[%emt 0:00:40]} 31. Kd3 {[%emt 0:09:11]} b5 {[%emt 0:03:16]} (31... Bxc3 {keeps fighting.} 32. bxc3 Nexd5) 32. Re1 {[%emt 0:02:49]} Nc4 {[%emt 0:01:02]} 33. Re2 {[%emt 0:05:56][%cal Oc3b5] [#] Hoping for Nxb5!} Ne5+ {[%emt 0:02:06]} 34. Ke4 {[%emt 0:00:02]} b4 {[%emt 0:03:35]} 35. Nd1 {[%emt 0:00:02]} Nxe6 {[%emt 0:01:43]} 36. dxe6 {[%emt 0:00:02]} Kxe6 $16 {[%emt 0:00:05][%mdl 4096] Endgame. [#] KRN-KBN} 37. Ne3 $1 {[%emt 0:00:39] Inhibits d5+.} Nf7 {[%emt 0:02:06][%cal Od6d5]} 38. h4 {[%emt 0:04:09]} d5+ {[%emt 0:07:00]} 39. Kf4 $1 {[%emt 0:00:11]} ({Inferior is} 39. Nxd5 Nd6+ 40. Kd3+ Kxd5 $17) 39... Be5+ {[%emt 0:01:04]} 40. Kf3 {[%emt 0:00:07]} d4 $2 {[%emt 0:09:02][%mdl 8192] This costs Black the game.} (40... Bd4 $1 $11 41. Nc2+ Ne5+ 42. Kg2 Bxb2 43. Nxb4 Ba1) 41. Nc4 $18 {[%emt 0:32:03] Nxe5 would now be deadly.} Kd5 {[%emt 0:30:18]} 42. b3 {[%emt 0:00:15]} h5 $2 {[%emt 0:03:29]} (42... h6 {is a better defense.} 43. Re1 d3) 43. Re1 {[%emt 0:02:40]} a5 {[%emt 0:03:03]} 44. Nxa5 {[%emt 0:02:42] Black must now prevent Nc4.} d3 $2 {[%emt 0:00:36]} (44... Nh6 45. Nc4 Bg7) 45. Nc4 {[%emt 0:00:35] White is clearly winning.} Bc3 {[%emt 0:01:38]} 46. Re7 {[%emt 0:01:11]} d2 {[%emt 0:02:22]} 47. Ne3+ {[%emt 0:00:27] Weighted Error Value: White=0.16 (very precise) /Black=0.30.  Loses game:     	---       	Black=1      Mistake:       	---       	Black=5      Inaccurate:     	White=3     	Black=3      OK:         	White=15    	Black=16     Best:        	White=3     	Black=3      Strong:       	White=2     	---} (47. Rxf7 $2 {is the wrong capture.} d1=Q+ (47... d1=B+ $2 {loses.} 48. Kf4 $18) 48. Kg2 Qe2+ 49. Rf2 Qe1 $19 (49... Qe4+ $2 50. Kh2 $19)) 1-0